bitfinex-derivatives/quotes_ETHF0:USTF0_20260312
["timestamp","ask_amount","ask_price","bid_price","bid_amount"]
[1773334185270,0.022,2073.1,2071.9,0.56172606]
[1773334185471,0.0045362,2073.2,2072.1,0.55570922]
[1773334185764,3.08517358,2073.5,2072.2,0.55570922]
[1773334185765,0.57056869,2073.5,2072.2,0.55570922]
[1773334185966,0.54856869,2073.5,2072.8,0.57770922]
[1773334186168,0.54856869,2073.5,2072.8,0.022]
[1773334186670,0.61456869,2073.4,2072.8,0.022]
[1773334187067,0.61456869,2073.4,2072.6,0.022]
[1773334187272,0.57056869,2073.1,2072.6,0.022]
[1773334187568,0.57056869,2073.1,2072.4,0.022]
[1773334187771,0.65856869,2073.1,2072.4,0.022]
[1773334188767,0.57056869,2073.0,2072.4,0.57770922]
[1773334188967,0.65856869,2073.1,2072.4,0.57770922]
[1773334189563,0.57056869,2072.9,2072.2,0.57770922]
[1773334190573,0.58430003,2072.7,2072.2,0.57770922]
[1773334190775,0.58430003,2072.6,2072.2,0.022]
[1773334191268,0.58430003,2072.9,2072.2,0.60015483]
[1773334191866,0.11,2073.0,2072.2,0.60015483]
[1773334192265,0.5886107,2073.5,2072.2,0.57815483]
[1773334192769,0.5666107,2073.5,2072.7,0.022]
[1773334193268,0.67230003,2073.3,2072.7,0.60015483]
[1773334193671,0.67789832,2073.3,2072.7,0.60015483]
[1773334194271,0.67789832,2073.3,2072.7,0.022]
[1773334194575,0.67789832,2073.3,2072.7,0.60015483]
[1773334195074,0.09359829,2073.3,2072.7,0.60015483]
[1773334195875,0.67789832,2073.3,2072.7,0.60015483]
[1773334196471,0.67789832,2073.3,2072.7,0.022]
[1773334196868,0.58430003,2073.1,2072.7,0.022]
[1773334197168,0.58430003,2072.9,2072.5,0.022]
[1773334197367,0.58430003,2072.9,2072.3,0.60015483]
[1773334197569,0.71630003,2073.1,2072.3,0.60015483]
[1773334197775,0.132,2073.1,2072.3,0.60015483]
[1773334198380,0.71630003,2073.1,2072.3,0.60015483]
[1773334198574,0.58430003,2073.0,2072.3,0.60015483]
[1773334200175,0.58430003,2072.8,2072.3,0.022]
[1773334200577,0.58430003,2072.8,2072.1,0.022]
[1773334200781,0.58430003,2072.6,2072.1,0.022]
[1773334201076,0.58430003,2072.6,2071.9,0.02801684]
[1773334201380,0.58430003,2072.6,2071.9,0.60617167]
[1773334201575,0.58430003,2072.4,2071.7,0.022]
[1773334201775,5.93336,2072.8,2071.7,0.022]
[1773334201776,0.58430003,2072.2,2071.7,0.022]
[1773334201976,0.58430003,2072.2,2071.5,0.022]
[1773334202571,0.58430003,2072.2,2071.5,0.60443861]
[1773334203283,0.22,2072.7,2071.7,0.57815483]
[1773334203480,0.80430003,2072.7,2071.7,0.57815483]
[1773334203681,0.58430003,2072.6,2071.7,0.57815483]
[1773334203881,0.58430003,2072.4,2071.7,0.57815483]
[1773334204388,0.22,2072.7,2071.7,0.57815483]
[1773334204682,0.58430003,2072.3,2071.5,0.60443861]
[1773334204981,0.58430003,2072.1,2071.5,0.60443861]
[1773334205484,5.93371,2072.6,2071.3,0.022]
[1773334205485,0.58430003,2071.9,2071.3,0.022]
[1773334205686,0.58430003,2071.7,2071.1,0.022]
[1773334206077,0.58430003,2071.5,2070.9,0.60015483]
[1773334206282,0.58430003,2072.0,2070.9,0.60015483]
[1773334206585,0.59016705,2072.0,2070.9,0.60445613]
[1773334211485,0.59016705,2072.0,2071.0,0.57815483]
[1773334211686,0.00586702,2072.0,2071.0,0.57815483]
[1773334212391,0.59016705,2072.0,2071.0,0.57815483]
[1773334212791,0.00586702,2072.0,2071.0,0.57815483]
[1773334213483,0.00586702,2072.0,2071.2,0.57815483]
[1773334213887,0.286,2072.4,2071.4,0.57815483]
[1773334214088,0.286,2072.4,2071.6,0.57815483]
[1773334214384,0.58430003,2072.3,2071.1,0.57815483]
[1773334214591,0.58430003,2072.1,2071.1,0.57815483]
[1773334214787,0.58430003,2071.9,2070.9,0.60445613]
[1773334214995,0.58957062,2071.9,2070.9,0.60445613]
[1773334215490,0.58430003,2071.7,2070.9,0.60445613]
[1773334216688,0.00527059,2071.9,2070.9,0.60445613]
[1773334218290,0.00527059,2071.9,2071.1,0.57815483]
[1773334218693,0.87030003,2072.4,2071.3,0.57815483]
[1773334218897,0.286,2072.4,2071.3,0.57815483]
[1773334219092,0.87030003,2072.4,2071.3,0.57815483]
[1773334219789,0.58430003,2072.3,2071.3,0.57815483]
[1773334220299,0.54126196,2072.3,2071.3,0.57815483]
[1773334220597,0.54126196,2072.0,2071.3,0.57815483]
[1773334221197,0.54126196,2072.0,2070.9,0.0263013]
[1773334221198,0.54126196,2071.8,2071.0,0.56070997]
[1773334221398,0.54126196,2071.6,2070.9,0.0263013]
[1773334222494,0.54126196,2071.6,2070.9,0.58701127]
[1773334222995,0.54126196,2071.6,2070.9,0.0263013]
[1773334223194,0.54126196,2071.6,2070.9,0.58701127]
[1773334223593,0.54126196,2071.8,2070.9,0.58701127]
[1773334224093,0.54126196,2071.8,2070.9,0.0263013]
[1773334224094,0.54126196,2071.7,2070.9,0.0263013]
[1773334224494,0.54126196,2071.5,2070.9,0.0263013]
[1773334225299,0.54126196,2071.3,2070.7,0.022]
[1773334225595,5.93582,2071.9,2070.7,0.58270997]
[1773334225596,0.54126196,2071.5,2070.7,0.58270997]
[1773334226398,0.54126196,2071.7,2070.7,0.58859973]
[1773334234705,0.54126196,2071.9,2070.8,0.56070997]
[1773334234902,0.54126196,2071.9,2071.0,0.56070997]
[1773334235604,0.54126196,2072.1,2071.0,0.56070997]
[1773334236308,0.54126196,2072.0,2071.0,0.56070997]
[1773334240611,0.54126196,2072.2,2071.3,0.56070997]
[1773334240913,0.54126196,2072.2,2071.4,0.56070997]
[1773334241812,0.54126196,2072.0,2071.0,0.56070997]
[1773334243607,0.57036909,2071.8,2071.0,0.56070997]
[1773334245717,0.57036909,2071.6,2070.8,0.56276479]
[1773334245917,0.57036909,2071.4,2070.7,0.02788976]
[1773334246115,0.57036909,2071.4,2070.7,0.59065455]
[1773334246616,0.57036909,2071.4,2070.7,0.02788976]
[1773334248713,0.57036909,2071.2,2070.5,0.022]
[1773334248919,0.57036909,2071.2,2070.5,0.58476479]
[1773334249617,0.57036909,2071.2,2070.5,0.58871744]
[1773334250324,0.57036909,2071.6,2070.5,0.58871744]
[1773334251317,6.22074124,2071.8,2070.8,0.58605256]
[1773334251518,0.5891918,2071.8,2070.8,0.58605256]
[1773334252719,0.5891918,2071.8,2070.9,0.58605256]
[1773334253114,0.5891918,2072.1,2070.9,0.58605256]
[1773334253309,0.5891918,2072.1,2071.0,0.58605256]
[1773334255211,0.5891918,2072.0,2071.0,0.58605256]
[1773334256618,0.9191918,2072.2,2071.1,0.58605256]
[1773334256819,0.33,2072.2,2071.2,0.58605256]
[1773334257513,0.01553028,2072.2,2071.4,0.58605256]
[1773334257722,0.00610262,2072.4,2071.7,0.58605256]
[1773334257915,0.57329442,2072.5,2072.2,0.022]
[1773334258116,0.57329442,2072.5,2072.0,0.022]
[1773334258524,0.57939704,2072.5,2072.0,0.022]
[1773334258726,0.5891918,2072.3,2071.6,0.022]
[1773334259018,0.5937067,2072.3,2071.6,0.61393549]
[1773334260727,0.5937067,2072.3,2071.6,0.02788293]
[1773334261423,0.5937067,2072.3,2071.6,0.61393549]
[1773334263330,0.5937067,2072.3,2071.6,0.02788293]
[1773334263524,0.5937067,2072.3,2071.6,0.61393549]
[1773334265330,0.5891918,2072.1,2071.4,0.022]
[1773334265534,0.5891918,2071.9,2071.2,0.022]
[1773334265833,0.5891918,2071.7,2071.0,0.022]
[1773334266430,0.5891918,2071.7,2071.0,0.02711183]
[1773334266731,0.5891918,2071.7,2071.0,0.61316439]
[1773334267335,0.5891918,2071.7,2071.0,0.02711183]
[1773334268239,0.5891918,2071.5,2070.6,0.022]
[1773334268535,0.5891918,2071.3,2070.4,0.022]
[1773334269138,0.5891918,2071.3,2070.4,0.02781666]
[1773334269139,0.5891918,2071.1,2070.4,0.02781666]
[1773334269337,0.5891918,2071.1,2070.4,0.61386922]
[1773334269533,0.5891918,2071.1,2070.4,0.02781666]
[1773334271540,0.24136,2071.2,2070.2,0.022]
[1773334271541,0.5891918,2070.9,2070.2,0.022]
[1773334271843,0.5891918,2070.9,2070.0,0.60805256]
[1773334272438,0.5891918,2070.9,2070.0,0.61328818]
[1773334273544,0.5891918,2070.9,2069.8,0.022]
[1773334273545,0.5891918,2070.7,2069.8,0.60805256]
[1773334274846,0.5934586,2070.7,2069.8,0.61431825]
[1773334279148,0.5934586,2070.7,2069.8,0.02826569]
[1773334279751,0.5934586,2070.7,2069.8,0.61431825]
[1773334281052,0.55396823,2070.5,2069.8,0.02826569]
[1773334282352,0.55396823,2070.5,2069.8,0.61044061]
[1773334282949,0.55396823,2070.5,2069.8,0.02826569]
[1773334283353,0.55396823,2070.5,2069.8,0.61044061]
[1773334285856,0.55396823,2070.5,2069.8,0.02826569]
[1773334287553,0.55396823,2070.6,2069.8,0.61044061]
[1773334288557,0.0042668,2070.7,2070.0,0.58217492]
[1773334288763,0.55823503,2070.7,2070.0,0.58217492]
[1773334289355,0.55823503,2070.7,2069.8,0.61044061]
[1773334290062,0.55396823,2070.5,2069.8,0.61044061]
[1773334290767,0.55396823,2070.3,2069.8,0.02826569]
[1773334291063,0.55396823,2070.1,2069.6,0.022]
[1773334291263,0.55396823,2070.6,2069.4,0.60417492]
[1773334292364,0.55396823,2070.6,2069.4,0.60877829]
[1773334293267,0.55396823,2070.6,2069.6,0.58217492]
[1773334293863,0.55396823,2070.6,2069.8,0.58217492]
[1773334296972,0.55396823,2070.6,2069.5,0.58217492]
[1773334297167,0.55396823,2070.4,2069.5,0.58217492]
[1773334297368,0.55396823,2070.2,2069.5,0.58217492]
[1773334297569,0.55396823,2070.0,2069.4,0.02660337]
[1773334297767,0.55396823,2070.0,2069.4,0.60877829]
[1773334298474,0.55396823,2070.0,2069.4,0.02660337]
[1773334298674,0.79550823,2069.7,2069.0,0.60417492]
[1773334298870,0.55396823,2069.7,2069.0,0.60417492]
[1773334299376,0.55396823,2069.7,2069.0,0.022]
[1773334299673,0.55396823,2069.7,2069.0,0.02789989]
[1773334299869,0.55396823,2069.7,2069.0,0.61007481]
[1773334300973,0.55396823,2069.7,2069.0,0.02789989]
[1773334301173,0.55396823,2069.7,2069.0,0.61007481]
[1773334301976,0.55396823,2069.9,2069.0,0.61007481]
[1773334302178,6.21109641,2069.9,2069.0,0.61007481]
[1773334302376,0.55396823,2069.9,2069.0,0.61007481]
[1773334303272,0.57587459,2070.1,2069.0,0.61007481]
[1773334305573,0.57587459,2070.0,2069.0,0.61007481]
[1773334305876,0.57587459,2070.0,2069.0,0.02789989]
[1773334305877,0.24154,2069.7,2069.0,0.02789989]
[1773334306077,0.57587459,2069.6,2068.8,0.55879491]
[1773334306374,0.57587459,2069.4,2068.8,0.022]
[1773334306577,0.57587459,2069.4,2068.6,0.55879491]
[1773334307073,0.57587459,2069.4,2068.6,0.56405583]
[1773334308876,0.57587459,2069.8,2068.6,0.56405583]
[1773334309271,0.57587459,2069.7,2068.6,0.56405583]
[1773334309476,0.57587459,2069.6,2068.6,0.56405583]
[1773334310878,0.24151,2070.0,2068.6,0.56405583]
[1773334310879,0.58126947,2069.8,2068.6,0.56405583]
[1773334312680,0.58126947,2069.8,2068.8,0.55521452]
[1773334317185,0.58126947,2069.7,2068.8,0.55521452]
[1773334318293,0.58126947,2070.1,2069.2,0.55521452]
[1773334320384,0.58126947,2070.5,2069.4,0.55521452]
[1773334322990,0.58126947,2070.3,2069.4,0.55521452]
[1773334323691,0.58126947,2070.1,2069.4,0.55521452]
[1773334324391,0.58126947,2070.3,2069.4,0.55521452]
[1773334325092,0.58126947,2070.6,2069.6,0.55521452]
[1773334326885,0.4222668,2070.7,2069.8,0.55521452]
[1773334327690,1.00353627,2070.7,2069.8,0.55521452]
[1773334327885,0.58126947,2070.6,2069.8,0.55521452]
[1773334330286,0.4222668,2070.7,2069.8,0.55521452]
[1773334330892,1.00353627,2070.7,2069.8,0.55521452]
[1773334331192,0.58126947,2070.6,2069.8,0.55521452]
[1773334331589,0.4222668,2070.7,2069.8,0.55521452]
[1773334331783,0.58126947,2070.6,2069.8,0.55521452]
[1773334332597,0.4222668,2070.7,2069.8,0.55521452]
[1773334333491,0.4222668,2070.7,2069.9,0.55521452]
[1773334334589,0.58126947,2070.6,2069.9,0.55521452]
[1773334337899,0.4222668,2070.7,2069.9,0.55521452]
[1773334338096,1.00353627,2070.7,2069.9,0.55521452]
[1773334338297,0.58126947,2070.6,2069.9,0.55521452]
[1773334338692,0.58126947,2070.3,2069.2,0.55521452]
[1773334339194,0.24148,2070.2,2069.2,0.55521452]
[1773334339400,0.58126947,2070.1,2069.2,0.55521452]
[1773334341403,0.54014547,2070.5,2069.2,0.55521452]
[1773334341600,0.54014547,2070.5,2069.3,0.57690405]
[1773334342102,0.6636968,2070.7,2069.6,0.57690405]
[1773334342103,0.54014547,2070.6,2069.6,0.57690405]
[1773334346409,0.54014547,2070.5,2069.6,0.57690405]
[1773334348209,0.54014547,2070.3,2069.6,0.57690405]
[1773334348409,0.54014547,2070.3,2069.1,0.57690405]
[1773334349006,0.54014547,2070.1,2069.1,0.57690405]
[1773334352915,6.19552199,2070.3,2069.1,0.57690405]
[1773334353115,6.19552199,2070.2,2069.1,0.57690405]
[1773334353317,0.54014547,2070.2,2069.1,0.57690405]
[1773334353718,0.54014547,2070.2,2069.2,0.57690405]
[1773334356120,0.54014547,2070.4,2069.4,0.57690405]
[1773334356320,0.54014547,2070.6,2069.5,0.57690405]
[1773334356521,6.17230474,2070.6,2069.5,0.57690405]
[1773334356724,0.54014547,2070.6,2069.5,0.57690405]
[1773334358519,0.54014547,2070.2,2069.5,0.57690405]
[1773334360217,0.54014547,2070.2,2069.3,0.57690405]
[1773334361916,9.67440734,2070.6,2069.3,0.57690405]
[1773334361917,0.54014547,2070.0,2069.3,0.57690405]
[1773334363613,0.56438119,2070.2,2069.3,0.57690405]
[1773334365831,0.56438119,2070.0,2069.3,0.57690405]
[1773334369525,0.56438119,2070.0,2069.0,0.53845117]
[1773334369829,0.56438119,2069.9,2069.0,0.53845117]
[1773334370227,6.19926577,2069.9,2069.0,0.53845117]
[1773334370425,0.53674663,2069.8,2069.0,0.53845117]
[1773334373525,6.17926761,2070.0,2069.0,0.53845117]
[1773334373730,0.53674663,2070.0,2069.0,0.53845117]
[1773334374129,0.53674663,2069.9,2069.0,0.53845117]
[1773334374330,0.53674663,2070.1,2069.0,0.53845117]
[1773334374634,0.53674663,2070.3,2069.2,0.55323943]
[1773334375133,0.53674663,2070.2,2069.2,0.55323943]
[1773334377634,0.53674663,2070.1,2069.2,0.55323943]
[1773334378231,0.53674663,2070.0,2069.2,0.55323943]
[1773334381133,0.77822663,2070.2,2069.2,0.55323943]
[1773334381431,0.53674663,2070.2,2069.2,0.55323943]
[1773334381943,0.53674663,2070.6,2069.5,0.55323943]
[1773334382135,6.17937915,2070.6,2069.5,0.55323943]
[1773334382435,0.53674663,2070.6,2069.8,0.55323943]
[1773334382636,0.4222668,2070.7,2069.8,0.55323943]
[1773334382637,0.95901343,2070.7,2069.8,0.55323943]
[1773334382845,0.53674663,2070.6,2069.8,0.55323943]
[1773334384231,0.53674663,2070.4,2069.5,0.55323943]
[1773334384434,0.24147,2070.3,2069.5,0.55323943]
[1773334384637,0.53674663,2070.2,2069.5,0.55323943]
[1773334385437,0.53674663,2070.2,2069.1,0.55323943]
[1773334385638,0.53674663,2070.0,2069.1,0.55323943]
[1773334385936,0.53674663,2070.4,2069.2,0.55323943]
[1773334386142,0.53674663,2070.3,2069.2,0.55323943]
[1773334386439,0.53674663,2070.5,2069.5,0.55323943]
[1773334390445,0.53674663,2070.3,2069.5,0.55323943]
[1773334393644,0.53674663,2070.3,2069.1,0.55323943]
[1773334395342,0.53674663,2070.3,2069.2,0.55323943]
[1773334395541,6.17522971,2070.5,2069.3,0.55323943]
[1773334395746,0.53674663,2070.5,2069.3,0.55323943]
[1773334395941,0.53674663,2070.5,2069.5,0.55323943]
[1773334396447,0.95901343,2070.7,2069.5,0.55323943]
[1773334396754,0.53674663,2070.6,2069.5,0.55323943]
[1773334399141,0.53674663,2070.6,2069.7,0.55323943]
[1773334399344,0.53674663,2070.6,2070.0,0.55323943]
[1773334399548,0.4222668,2070.7,2070.0,0.55323943]
[1773334400455,0.58383641,2070.6,2070.0,0.55323943]
[1773334401847,0.4222668,2070.7,2070.0,0.55323943]
[1773334402045,1.00610321,2070.7,2070.0,0.55323943]
[1773334402446,0.58383641,2070.6,2070.0,0.55323943]
[1773334402845,0.4222668,2070.7,2070.0,0.55323943]
[1773334403656,1.00610321,2070.7,2070.0,0.55323943]
[1773334404156,0.58383641,2070.6,2070.0,0.55323943]
[1773334409157,0.58383641,2070.6,2069.7,0.5874312]
[1773334410260,0.58383641,2070.4,2069.5,0.5874312]
[1773334410956,0.58383641,2070.1,2069.1,0.5874312]
[1773334415865,0.58383641,2069.9,2069.1,0.5874312]
[1773334416067,0.58383641,2069.9,2068.9,0.5874312]
[1773334418166,0.58383641,2070.2,2068.9,0.5874312]
[1773334418366,0.58383641,2070.1,2068.9,0.5874312]
[1773334420572,0.58383641,2070.0,2068.9,0.5874312]
[1773334422373,0.58383641,2070.0,2069.1,0.56858814]
[1773334422569,0.58383641,2070.0,2069.3,0.81357814]
[1773334422779,0.58383641,2070.0,2068.8,0.56858814]
[1773334422966,0.57839983,2069.8,2068.8,0.56858814]
[1773334423875,0.57839983,2069.6,2068.8,0.56858814]
[1773334424073,0.57839983,2069.6,2068.6,0.02726092]
[1773334425072,0.57839983,2069.4,2068.6,0.02726092]
[1773334425368,0.57839983,2069.4,2068.4,0.022]
[1773334425776,0.57839983,2069.4,2068.4,0.59058814]
[1773334426481,0.57839983,2069.6,2068.6,0.56858814]
[1773334426776,0.57839983,2070.0,2069.0,0.56858814]
[1773334427179,0.57839983,2070.4,2069.0,0.56858814]
[1773334428781,0.57839983,2070.3,2069.0,0.56858814]
[1773334430284,0.57839983,2070.1,2069.0,0.56858814]
[1773334432485,0.54078282,2069.9,2068.8,0.58064458]
[1773334433185,5.59974145,2070.2,2068.8,0.58064458]
[1773334433186,0.54078282,2069.7,2068.8,0.58064458]
[1773334438985,0.54078282,2069.5,2068.8,0.58064458]
[1773334441685,0.54078282,2069.3,2068.4,0.60863646]
[1773334442085,0.54078282,2069.1,2068.4,0.60863646]
[1773334442288,0.54523351,2069.1,2068.4,0.60863646]
[1773334442485,0.00445069,2069.1,2068.4,0.60863646]
[1773334443090,0.54523351,2069.1,2068.4,0.60863646]
[1773334445186,0.54078282,2068.9,2068.2,0.022]
[1773334445392,0.54078282,2068.9,2068.0,0.60264458]
[1773334446384,0.54078282,2068.9,2068.0,0.60717087]
[1773334449693,0.54078282,2068.7,2068.0,0.02652629]
[1773334450590,0.54078282,2068.3,2067.8,0.022]
[1773334450795,0.54078282,2068.3,2067.8,0.60264458]
[1773334450994,0.54078282,2068.3,2067.8,0.022]
[1773334451692,0.54078282,2068.3,2067.8,0.0267254]
[1773334452602,0.54078282,2068.3,2067.8,0.60736998]
[1773334453706,0.54078282,2068.3,2067.8,0.0267254]
[1773334453908,0.54078282,2068.3,2067.8,0.60736998]
[1773334454103,0.54078282,2068.7,2067.8,0.60736998]
[1773334454503,0.24164,2068.9,2067.8,0.60736998]
[1773334454504,0.54078282,2068.9,2067.8,0.60736998]
[1773334454708,0.54523351,2069.1,2068.1,0.58064458]
[1773334455203,0.00445069,2069.1,2068.4,0.58064458]
[1773334455603,0.54078282,2069.9,2068.4,0.58064458]
[1773334455906,0.54078282,2069.7,2068.4,0.58064458]
[1773334456510,0.54440389,2069.7,2068.4,0.58064458]
[1773334461114,0.54440389,2069.7,2068.7,0.59330511]
[1773334462414,0.58629266,2070.0,2069.3,0.59330511]
[1773334463503,0.59053293,2070.0,2069.3,0.00572853]
[1773334464816,0.59053293,2070.0,2068.7,0.59330511]
[1773334465712,0.59053293,2070.0,2068.7,0.59916148]
[1773334468116,0.58629266,2069.8,2068.7,0.59916148]
[1773334469017,0.58629266,2069.8,2069.0,0.59330511]
[1773334470919,0.59053293,2070.0,2069.0,0.59330511]
[1773334471313,0.00424027,2070.0,2069.0,0.59330511]
[1773334471516,0.00424027,2070.0,2068.9,2.80574719]
[1773334471517,0.00424027,2070.0,2069.3,0.59330511]
[1773334471820,0.59053293,2070.0,2069.3,0.59330511]
[1773334472315,0.58629266,2069.9,2068.8,0.59330511]
[1773334476021,0.59053293,2070.0,2069.3,0.59330511]
[1773334476215,0.506,2070.3,2069.6,0.59330511]
[1773334477218,0.51205245,2070.3,2069.6,0.59330511]
[1773334478616,0.58629266,2070.2,2069.6,0.59330511]
[1773334478925,0.27376048,2070.3,2069.6,0.59330511]
[1773334479220,0.27376048,2070.3,2069.3,0.24158]
[1773334479221,0.58629266,2070.7,2069.9,0.59330511]
[1773334479414,0.56429266,2070.7,2070.1,0.022]
[1773334480023,0.56930324,2070.7,2070.1,0.61530511]
[1773334480525,0.58629266,2070.5,2070.1,0.022]
[1773334481523,0.63029266,2070.5,2069.9,0.022]
[1773334482119,0.63029266,2070.5,2069.9,0.56667562]
[1773334482321,0.044,2070.5,2069.9,0.56667562]
[1773334483821,0.00501058,2070.7,2069.9,0.54467562]
[1773334484118,0.52902517,2070.6,2069.9,0.022]
[1773334484321,0.52902517,2070.6,2069.9,0.56667562]
[1773334484822,0.00501058,2070.7,2069.9,0.56667562]
[1773334484823,0.55102517,2070.4,2069.9,0.022]
[1773334485322,0.088,2070.5,2069.9,0.56667562]
[1773334485523,0.63902517,2070.5,2069.9,0.56667562]
[1773334488123,0.00501058,2070.7,2070.0,0.54467562]
[1773334488518,0.53403575,2070.7,2070.5,0.022]
[1773334489019,0.53403575,2070.7,2070.3,0.56667562]
[1773334489218,0.57803575,2070.7,2070.3,0.022]
[1773334489627,0.58178152,2070.7,2070.3,0.02810991]
[1773334490326,0.59415906,2070.5,2070.1,0.022]
[1773334491224,0.59415906,2070.5,2069.9,0.022]
[1773334491428,0.59415906,2070.5,2069.7,0.57217495]
[1773334491429,0.59415906,2070.3,2069.7,0.57217495]
[1773334492426,0.59415906,2070.3,2069.7,0.57835156]
[1773334497632,0.59415906,2070.3,2069.7,0.02817661]
[1773334497832,0.59415906,2070.3,2069.7,0.57835156]
[1773334499634,0.59415906,2070.3,2069.7,0.02817661]
[1773334499833,0.59415906,2070.3,2069.5,0.022]
[1773334500034,0.72615906,2070.3,2069.5,0.022]
[1773334500431,0.72615906,2070.3,2069.5,0.57217495]
[1773334500838,0.72615906,2070.3,2069.5,0.57821597]
[1773334501237,0.59415906,2070.1,2069.5,0.02804102]
[1773334501439,0.59415906,2070.1,2069.5,0.57821597]
[1773334501632,0.132,2070.3,2069.5,0.57821597]
[1773334501934,0.72615906,2070.3,2069.5,0.57821597]
[1773334502328,0.132,2070.3,2069.5,0.57821597]
[1773334502531,0.59790483,2070.7,2069.7,0.55017495]
[1773334502836,6.58793106,2071.2,2070.3,0.55017495]
[1773334502837,0.59415906,2071.2,2070.3,0.55017495]
[1773334503027,0.57215906,2071.2,2070.5,0.022]
[1773334503232,0.57215906,2071.2,2070.5,0.57217495]
[1773334503727,0.57730116,2071.2,2070.5,0.57217495]
[1773334504639,0.57730116,2071.2,2070.5,0.022]
[1773334505139,0.57730116,2071.2,2070.5,0.57217495]
[1773334506236,0.57730116,2071.2,2070.5,0.022]
[1773334507941,0.57730116,2071.2,2070.5,0.57217495]
[1773334508140,0.57730116,2071.2,2070.5,0.022]
[1773334509140,0.57730116,2071.2,2070.5,0.57217495]
[1773334509644,0.57730116,2071.2,2070.5,0.022]
[1773334510548,0.57730116,2071.2,2070.5,0.57217495]
[1773334510737,0.57730116,2071.2,2070.5,0.022]
[1773334511443,0.57730116,2071.2,2070.5,0.57217495]
[1773334511842,0.57730116,2071.2,2070.5,0.022]
[1773334512338,0.59415906,2071.0,2070.3,0.022]
[1773334512542,0.63815906,2071.0,2070.3,0.022]
[1773334512938,0.59415906,2070.8,2070.3,0.022]
[1773334513140,0.59415906,2070.6,2070.1,0.022]
[1773334513449,0.59415906,2070.6,2069.9,0.022]
[1773334513647,0.68215906,2070.6,2069.9,0.57217495]
[1773334514546,0.59415906,2070.9,2070.1,0.55017495]
[1773334514849,0.2465121,2071.2,2070.1,0.55017495]
[1773334514850,0.59415906,2071.1,2070.1,0.55017495]
[1773334515047,0.57215906,2071.1,2070.7,0.57217495]
[1773334515545,0.57215906,2071.1,2070.7,0.022]
[1773334516544,0.62130116,2071.2,2070.7,0.57217495]
[1773334518143,0.62130116,2071.2,2070.7,0.022]
[1773334519351,0.63815906,2071.0,2070.5,0.022]
[1773334519944,0.63815906,2071.0,2070.5,0.57217495]
[1773334520144,0.63815906,2071.0,2070.5,0.022]
[1773334520340,0.044,2071.0,2070.5,0.58346357]
[1773334520743,0.59398578,2071.0,2070.5,0.58346357]
[1773334520951,0.044,2071.0,2070.5,0.58346357]
[1773334522549,0.0051421,2071.2,2070.5,0.58346357]
[1773334522745,0.0051421,2071.2,2070.5,0.56146357]
[1773334522948,0.53312788,2071.2,2071.0,0.022]
[1773334523451,0.53312788,2071.2,2070.8,0.58346357]
[1773334523648,0.044,2071.2,2070.8,0.58346357]
[1773334524048,0.04764671,2071.2,2070.8,0.58812101]
[1773334524449,0.24133,2071.6,2070.8,0.56612101]
[1773334524450,0.54998578,2071.5,2070.8,0.56612101]
[1773334524754,0.52798578,2071.9,2071.3,0.022]
[1773334525052,0.54998578,2071.8,2071.3,0.022]
[1773334525354,0.55338822,2071.8,2071.3,0.022]
[1773334525852,0.24136,2071.3,2070.8,0.00465744]
[1773334526155,0.63798578,2071.4,2070.7,0.58346357]
[1773334527055,0.63798578,2071.4,2070.7,0.58753234]
[1773334529354,0.63798578,2071.4,2070.7,0.02606877]
[1773334529650,0.63798578,2071.4,2070.7,0.58753234]
[1773334533157,0.54998578,2071.1,2070.3,0.022]
[1773334533354,0.54998578,2071.1,2070.3,0.58346357]
[1773334533559,0.54998578,2071.1,2070.3,0.022]
[1773334533756,0.54998578,2071.1,2070.3,0.58346357]
[1773334533956,0.54998578,2071.1,2070.3,0.58749019]
[1773334535054,0.54998578,2071.0,2070.3,0.58749019]
[1773334535263,0.68198578,2071.2,2070.3,0.58749019]
[1773334538455,0.132,2071.2,2070.3,0.58749019]
[1773334539250,0.68198578,2071.2,2070.3,0.58749019]
[1773334540851,0.54998578,2071.1,2070.3,0.58749019]
[1773334543659,0.59054634,2070.9,2070.3,0.02602662]
[1773334546959,0.59054634,2070.7,2070.1,0.022]
[1773334547964,0.59054634,2070.9,2070.1,0.6123053]
[1773334549059,0.74454634,2071.1,2070.1,0.6123053]
[1773334549256,0.59054634,2071.0,2070.1,0.6123053]
[1773334549459,0.154,2071.1,2070.1,0.6123053]
[1773334549661,0.74454634,2071.1,2070.1,0.6123053]
[1773334551267,0.154,2071.1,2070.2,0.5627651]
[1773334552063,0.154,2071.1,2070.3,0.5627651]
[1773334552265,0.7220838,2071.1,2070.3,0.5627651]
[1773334553672,0.5680838,2071.0,2070.3,0.5627651]
[1773334555868,0.5680838,2071.0,2070.1,0.58832351]
[1773334557270,5.84367719,2071.1,2070.1,0.58832351]
[1773334557271,0.5680838,2070.9,2070.1,0.58832351]
[1773334558069,0.5680838,2070.5,2069.9,0.022]
[1773334558469,0.5680838,2070.5,2069.7,0.5847651]
[1773334558975,0.5680838,2070.3,2069.5,0.022]
[1773334559176,0.5680838,2070.1,2069.5,0.02753072]
[1773334559472,0.5680838,2070.1,2069.5,0.59029582]
[1773334560172,0.57366904,2070.3,2069.5,0.59029582]
[1773334561070,0.57366904,2070.3,2069.5,0.02753072]
[1773334561270,0.5680838,2070.2,2069.5,0.02753072]
[1773334561974,0.5680838,2070.0,2069.3,0.022]
[1773334562178,0.5680838,2069.8,2069.1,0.022]
[1773334562872,0.5680838,2069.6,2069.1,0.022]
[1773334563074,0.5680838,2069.6,2068.9,0.5847651]
[1773334563675,0.5680838,2069.6,2068.9,0.022]
[1773334564171,0.5680838,2069.6,2068.9,0.02752875]
[1773334564372,0.5680838,2069.3,2068.5,0.022]
[1773334565373,0.5680838,2069.3,2068.5,0.02569465]
[1773334565875,0.5680838,2069.3,2068.5,0.58845975]
[1773334567369,0.5680838,2069.5,2068.5,0.58845975]
[1773334567772,0.5680838,2069.8,2068.7,0.5627651]
[1773334567977,0.5680838,2070.1,2068.7,0.5627651]
[1773334568276,0.5680838,2070.1,2068.9,0.5627651]
[1773334568671,0.33,2070.2,2069.0,0.5627651]
[1773334568867,0.5680838,2070.1,2069.0,0.5627651]
[1773334574990,0.33,2070.2,2069.2,0.5627651]
[1773334575289,0.8980838,2070.2,2069.2,0.5627651]
[1773334575488,0.5680838,2070.1,2069.2,0.5627651]
[1773334578283,0.33,2070.2,2069.2,0.5627651]
[1773334578488,0.8980838,2070.2,2069.5,0.5627651]
[1773334578886,0.5680838,2070.1,2069.5,0.5627651]
[1773334579296,0.5680838,2070.1,2069.1,0.5627651]
[1773334579297,0.5680838,2070.0,2069.1,0.5627651]
[1773334580586,0.5680838,2070.0,2068.5,3.06796044]
[1773334580795,0.5680838,2070.0,2068.6,0.57833512]
[1773334581296,3.37207579,2070.2,2068.6,0.57833512]